Workbook

Sheet Link model illustration

Sheet Revision notes
A1: Version 2.0
A2: Align the model with motion #19 from July 2007 minutes: “For budget calculations, assume the following mapping function between ITU-T sensitivity and IEEE stressed sensitivity. Sensitivity(ITU)[OMA] + Optical_Path_Penalty(ITU) = Stressed_Sensitivity(IEEE)
A3: Implement the new dispersion penalty calculation mechanism proposed in 3av_0705_saeki_1.pdf
A4: Less clutter – more user friendly interface
A5: Parameters divided into Tx, Rx and channel groups
A6: Aligns the model with the contents of motion #19 from July 2007 minutes
A7: Calculate the Channel Insertion Loss (ChIL) as a total of: splitter loss (calculated), fibre loss (ideal), connector loss and excess loss (user provided)
A8: Required Rx sensitivity is calculated based on Tx output power (min value) and the maximum ChIL figure
A9: Both IEEE and ITU Rx sensitivity figures are calculated, IEEE Stressed Rx Sensitivity is estimated
A10: Cells B16, B17 and B24 are based on drop down lists to allow only specific parameter values – prevents introduction of unexpected values by users
A11: Added range checking for most of the user defined and calculated parameters
A12: Added dispersion penalty testing (Dispersion_penalty <= ITU_Optical_Path_Penalty)
A13: G652AB/CD fibre attenuation curves with min / max values
A14: Added min/max/average curves for PSC insertion loss
A15: Spreadsheet is locked but not password protected (Tools > Protection > Protect Sheet)
A17: Version 2.1
A18: added a legend for the field color code
A19: uniformization of the Tx_Chirp_Parameter_Max with the official definition in Agrawal’s “Fiber-Optic Communication Systems”
A20: correction in the Dispersion_Penalty formula (minus sign missing)
A21: removal of the circular reference in the Fibre_Attenuation_Value formula for G652AB and G652CD options in the Fibre_Attenuation_Curve parameter
A22: parameter Tx_Spectral_Width_Max was removed - it was not used in any calculations (carry-on from the previous spreadsheet version)
A23: added TDP parameter cell (user defined)
A24: updated the Channel Link Model Illustration (see tab Link model illustration)
A26: Version 2.2
A27: Added IEEE_Tx_OMA_Min and IEEE_Tx_OMA_Max parameters to faciliate the filling in tables in clause 60
A28: Corrected error in the conversion between dBm OMA and uW OMA - cells affected: B8, B10, B44, B47, B49
A29: Conversion formulas: dBm > wM: 10^(dBm/10); mW > dBm: 10log10(mW); OMA=2*Pmean*(ER-1)/(ER+1); ER=(2*Pmean+OMA)/(2*Pmean-OMA)
A30: Added extended description of the model parameter definitions in the Comments column
A31: Added a new tab with the colour code for improved readibility.
A33: Version 2.3
A34: Added IEEE_Rx_Sen_Ave parameter to facilitate filling up the tables in Clause 91 (PMD parameters)
A35: Added Power Budget field, which calculates the total available power budget

Sheet Colour code
A1: Colour Code Key
B2: User input field (unlocked)
B3: Introduced value is OK
B4: Introduced / Calculated value is outside of expected range
B5: Locked fields, not accessible to a user
B6: Comments
B7: Newly added fields

Sheet version 1.0
A1: Parameter name | B1: Value | C1: Unit | D1: Description | E1: Value min | F1: Value max
A3: Transmitter parameters
A4: ITU_ERnom | B4: 9 | C4: dB | D4: Nominal Extinction Ratio used to convert average power values to OMA values - for a test procedure, see 802.3, clause 52.9.5; for relation between OMA, ER and average power, see 802.3, clause 58.7.6 | E4: 0 | F4: 9 | H4: min | I4: lambda^-4 | J4: min
A5: ITU_Tx_Ave_Min | B5: 6 | C5: dBm | D5: Average Tx launch power (minimum) equal to the minimum OMA at the maximum ER | E5: -99 | F5: 99 | H5: ave | I5: G652AB | J5: max
A6: ITU_Tx_Ave_Max | B6: 8 | C6: dBm | D6: Average Tx launch power (maximum) equal to the maximum OMA at the nominal ER | E6: -99 | F6: 99 | H6: max | I6: G652CD
A7: IEEE_Tx_OMA_Min | B7: =10*LOG((2*10^(B5/10)*(10^(B4/10)-1)/(10^(B4/10)+1)),10) -> 7.910978798 | C7: dBm | D7: Minimum OMA Tx launch power
A8: IEEE_Tx_OMA_Min | B8: =10^(B7/10) -> 6.181557022 | C8: mW | D8: Minimum OMA Tx launch power
A9: IEEE_Tx_OMA_Max | B9: =10*LOG((2*10^(B6/10)*(10^(B4/10)-1)/(10^(B4/10)+1)),10) -> 9.910978798 | C9: dBm | D9: Maximum OMA Tx launch power
A10: IEEE_Tx_OMA_Max | B10: =10^(B9/10) -> 9.797107643 | C10: mW | D10: Maximum OMA Tx launch power
A11: Tx_Wavelength_Min | B11: 1340 | C11: nm | D11: Transmitter wavelength (min) | E11: 1200 | F11: 1600
A12: Tx_Wavelength_Max | B12: 1360 | C12: nm | D12: Transmitter wavelength (max) | E12: 1200 | F12: 1600
A13: Tx_Wavelength_Uc | B13: =(B12+B11)/2 -> 1350 | C13: nm | D13: Transmitter wavelength (central wavelength), calculated based on Tx_Wavelength_Min and Tx_Wavelength_Max | E13: =B11 -> 1340 | F13: =B12 -> 1360
A14: Tx_Chirp_Parameter_Max | B14: 0 | C14: - | D14: The maximum (worst case) value of Chirp parameter used in the calculation of the dispersion penalty. (Normal DML's are negative)
A15: Tx_Data_Rate | B15: 25000 | C15: MBd | D15: The effective data rate at the PMD level after encoding, scrambling i.e. fed to the PMA interface and transmitted on the fibre channel | E15: 9500 | F15: 100000
A17: Link parameters
A18: Fibre_Attenuation_Curve | B18: lambda^-4 | C18: - | D18: Defines the type of the fibre attenuation curve which will be used for calculation of the fibre attenuation for the given operating wavelength. 3 types of curves are available i.e. lambda^-4,G652AB,G652CD
A19: Fibre_Attenuation_Curve_Type | B19: min | C19: - | D19: Defines the variant of the fibre attenuation curve for G.652 SMF. Maximum and minimum attenuation curves are available only for G652AB and G652CD type of fibre.
A20: Fibre_Attenuation_Base_Value | B20: 0.35 | C20: dB/km | D20: Base wavelength for fibre attenuation estimation - only applicable to the lambda^-4 model. | E20: 0 | F20: 1
A21: Fibre_Attenuation_Base_Wavelength | B21: =IF(B18="lambda^-4",(IF(Uc<1000,850,IF(Uc>1430,1550,1310))),Uc) -> 1310 | C21: nm | D21: Base wavelength for fibre attenuation estimation
A22: Fibre_Attenuation_Value | B22: =fibre_loss(B18,B19,B21,B20,Uc) -> 0.3384515178 | C22: dB/km | D22: Calculated nominal attenuation of fibre in dB/km of ideal channel (no connectors, splices etc. i.e. the medium is considered to be continous)
A23: Channel_Length_Max | B23: 20 | C23: km | D23: The length of the fibre channel between the OLT and the most distant ONU | E23: 0.5 | F23: 20
A24: Fibre_Loss | B24: =B22*B23 -> 6.769030356 | C24: dB | D24: Calculated total attenuation of an ideal fibre channel (no connectors, splices etc. i.e. the medium is considered to be continous)
A25: PSC_Split_count | B25: 32 | C25: - | D25: The maximum number of ports on the Passive Splitter Combiner (powers of 2 are acceptable) | E25: 2 | F25: 64
A26: PSC_Loss_Curve | B26: max | C26: - | D26: Defines the type of the PSC loss curve (best case [min], average [avg] and worst case [max]) for the FBT type PSC devices, based on the collected device loss data and approximated curves.
A27: PSC_Loss | B27: =10*LOG(B25)+IF(B26="ave",0.564*LN(B25)+0.4,IF(B26="min",0.288*LN(B25)+0.09,0.663*LN(B25)+1.05)) -> 18.39928269 | C27: dB | D27: The total loss of the PSC device with the particular number of ports (PSC_Split_count) for the given loss curve (PSC_Loss_Curve), accounting for the ideal and excess loss
A28: SRS_Loss | B28: 1 | C28: dB | D28: SRS induced nonlinear penalty (as resulting from the nonlinear interaction with any other transmission system e.g. 1550nm Analog video overlay operated on the PON fiber). | F28: 10
A29: Excess_Loss | B29: =B32-B24-B27-B28 -> 2.831686957 | C29: dB | D29: The additional loss resulting from the non-ideal fibre channel elements i.e. connectors, splices and as well as other sources of extra loss
A30: ITU_Optical_Path_Penalty | B30: 1 | C30: dB | D30: The penalty attributable to the optical path. Given a fixed set of transmitter and receiver, the optical path penalty is equal to the link margin measured with pure attenuation less the link margin measured with the worst case optical path. | E30: 0 | F30: 5
A31: Channel_Loss_Min | B31: 8 | C31: dB | D31: Minimum channel insertion loss (user defined) to prevent the overload of the receiver on the receiving side of the link. | E31: 0 | F31: =B32 -> 29
A32: Channel_Loss_Max | B32: 29 | C32: dB | D32: Maximum channel insertion loss (user defined), limited by the Tx power and Rx sensitivity | E32: =B31 -> 8 | F32: 45
A33: Power Budget | B33: =B5-B49 -> 30.5 | C33: dB | D33: Available power budget
A34: Dispersion_Uo_Min | B34: 1300 | C34: nm | D34: Minimum value of the zero dispersion wavelength
A35: Dispersion_Uo_Max | B35: =IF(Uc>1312,1300,1324) -> 1300 | C35: nm | D35: Maximum value of the zero dispersion wavelength
A36: Dispersion_So | B36: =IF(Uo=1320,0.11,0.093) -> 0.093 | C36: ps/nm^2·km | D36: Value of the dispersion curvature parameter
A37: Dispersion_D_Max | B37: =0.25*B36*B12*(1-(B34/B12)^4) -> 5.221476233 | C37: ps/(nm·km) | D37: Maximum calculated dispersion "D" parameter
A38: Dispersion_D_Min | B38: =0.25*B36*B11*(1-(B35/B11)^4) -> 3.556722868 | C38: ps/(nm·km) | D38: Minimum calculated dispersion "D" parameter
A39: Dispersion_Penalty | B39: =5*LOG((1+8*(B14)*(-(B11^2/(2*PI()*3*10^5)*B38))*(B15/1000000)^2*B23)^2+(8*(-(B11^2/(2*PI()*3*10^5)*B38))*(B15/1000000)^2*B23)^2,10) -> 0.2359719868 | C39: dB | D39: Dispersion penalty, calculated for the worst case transmission wavelength in the allocated window (Tx_Wavelength_Min, Tx_Wavelength_Max), based on the dispersion penalty estimation model presented in 3av_0705_saeki_1.pdf
A40: TDP | B40: 1.5 | C40: dB | D40: Transmitter and Dispersion Penalty (maximum) is equal to the link margin, measured with an ideal Tx and pure attenuation less the link margin measured with a worst case Tx and worst case optical path. | E40: 0 | F40: 10
A42: Receiver parameters
A43: ITU_Rx_Sensitivity_Ave | B43: =B5-B32-B30 -> -24 | C43: dBm | D43: Average Rx sensitivity in ITU formalism, calculated as the difference between the minimum, average Tx launch power (ITU_Tx_Ave_Min) and the total power budget (Channel_Loss_Max + ITU_Optical_Path_Penalty) @ BER 1e-3
A44: ITU_Rx_Sensitivity_Ave_OMA | B44: =10*LOG((2*10^(B43/10)*(10^(B4/10)-1)/(10^(B4/10)+1)),10) -> -22.0890212 | C44: dBm | D44: Average Rx sensitivity (ITU_Rx_Sensitivity_Ave) in OMA, for the given nominal ER (ITU_Ernom) @ BER 1e-3
A45: ITU_Rx_Sensitivity_Ave_OMA | B45: =1000*10^(B44/10) -> 6.181557022 | C45: uW | D45: Average Rx sensitivity (ITU_Rx_Sensitivity_Ave) in OMA, for the given nominal ER (ITU_Ernom) @ BER 1e-3
A46: IEEE_Rx_Stressed_Sensitivity_Ave | B46: =B43+B30 -> -23 | C46: dBm | D46: Stressed Rx sensitivity in average power form @ BER 1e-3
A47: IEEE_Rx_Stressed_Sensitivity_OMA | B47: =10*LOG((2*10^(B46/10)*(10^(B4/10)-1)/(10^(B4/10)+1)),10) -> -21.0890212 | C47: dBm | D47: OMA stressed Rx sensitivity in average power form @ BER 1e-3
A48: IEEE_Rx_Stressed_Sensitivity_OMA | B48: =1000*10^(B47/10) -> 7.782119219 | C48: uW | D48: OMA stressed Rx sensitivity in average power form @ BER 1e-3
A49: IEEE_Rx_Sen_Ave | B49: =10*LOG(((10^(B51/10))/(2*(10^(B4/10)-1)/(10^(B4/10)+1))),10) -> -24.5 | C49: dBm | D49: Ideal Rx sensitivity in IEEE formalism in average power taking the TDP into account.
A50: IEEE_Rx_Sen_Ave | B50: =1000*10^(B49/10) -> 3.548133892 | C50: uW | D50: Ideal Rx sensitivity in IEEE formalism in average power taking the TDP into account.
A51: IEEE_Rx_Sen_OMA | B51: =B47-B40 -> -22.5890212 | C51: dBm | D51: Ideal Rx sensitivity in IEEE formalism in OMA taking the TDP into account.
A52: IEEE_Rx_Sen_OMA | B52: =1000*10^(B51/10) -> 5.509318495 | C52: uW | D52: Ideal Rx sensitivity in IEEE formalism in OMA taking the TDP into account.
A53: Rx_Overload | B53: =B6-B31 -> 0 | C53: dBm | D53: The Rx overload value for the given link
A55: Check Conditions
A56: Dispersion_Penalty <= ITU_Optical_Path_Penalty | D56: =IF(B39<=B30,"PASSED","FAILED") -> PASSED
